[Event "Titled Tuesday Blitz September 28 2021"]
[White "Assaubayeva, Bibisara"]
[Black "Bluebaum, Matthias"]
[WhiteFideId "13708694"]
[BlackFideId "24651516"]
[WhiteElo "2704"]
[BlackElo "2909"]
[Result "1/2-1/2"]
[Round "11"]
[TimeControl "180+1"]
[Date "2021.09.28"]
[WhiteClock "0:01:03"]
[BlackClock "0:00:15"]

1. d4 {[%clk 0:03:00]}  d5 {[%clk 0:03:00]} 2. c4 {[%clk 0:03:01]}  e6 {[%clk 0:03:00]} 3. Nc3 {[%clk 0:03:00]}  Nf6 {[%clk 0:03:00]} 4. cxd5 {[%clk 0:03:00]}  exd5 {[%clk 0:03:01]} 5. Bg5 {[%clk 0:03:00]}  c6 {[%clk 0:03:02]} 6. e3 {[%clk 0:03:00]}  h6 {[%clk 0:03:02]} 7. Bh4 {[%clk 0:02:58]}  Bf5 {[%clk 0:03:03]} 8. Qf3 {[%clk 0:02:56]}  Be6 {[%clk 0:03:04]} 9. Bxf6 {[%clk 0:02:55]}  Qxf6 {[%clk 0:03:05]} 10. Qxf6 {[%clk 0:02:55]}  gxf6 {[%clk 0:03:06]} 11. Bd3 {[%clk 0:02:55]}  a5 {[%clk 0:03:06]} 12. Nge2 {[%clk 0:02:53]}  a4 {[%clk 0:03:06]} 13. Nf4 {[%clk 0:02:50]}  a3 {[%clk 0:03:07]} 14. b3 {[%clk 0:02:49]}  Na6 {[%clk 0:03:07]} 15. Bxa6 {[%clk 0:02:42]}  Rxa6 {[%clk 0:03:08]} 16. Ke2 {[%clk 0:02:40]}  Bd6 {[%clk 0:03:04]} 17. Nd3 {[%clk 0:02:35]}  Ra8 {[%clk 0:03:03]} 18. Na4 {[%clk 0:02:32]}  Rg8 {[%clk 0:02:50]} 19. g3 {[%clk 0:02:31]}  Bf5 {[%clk 0:02:43]} 20. Rac1 {[%clk 0:02:28]}  h5 {[%clk 0:02:39]} 21. h4 {[%clk 0:02:20]}  Bg4+ {[%clk 0:02:39]} 22. Kd2 {[%clk 0:02:20]}  Bf3 {[%clk 0:02:37]} 23. Rhg1 {[%clk 0:02:14]}  Ke7 {[%clk 0:02:34]} 24. Ndc5 {[%clk 0:02:12]}  Ra7 {[%clk 0:02:26]} 25. Nc3 {[%clk 0:02:07]}  f5 {[%clk 0:02:10]} 26. Ne2 {[%clk 0:02:05]}  b6 {[%clk 0:01:42]} 27. Nd3 {[%clk 0:02:04]}  Rc7 {[%clk 0:01:42]} 28. Nef4 {[%clk 0:02:01]}  Rgc8 {[%clk 0:01:31]} 29. b4 {[%clk 0:01:57]}  c5 {[%clk 0:00:58]} 30. bxc5 {[%clk 0:01:53]}  bxc5 {[%clk 0:00:58]} 31. dxc5 {[%clk 0:01:51]}  Bxc5 {[%clk 0:00:59]} 32. Nxc5 {[%clk 0:01:50]}  Rxc5 {[%clk 0:01:00]} 33. Rxc5 {[%clk 0:01:45]}  Rxc5 {[%clk 0:01:01]} 34. Rc1 {[%clk 0:01:37]}  Rb5 {[%clk 0:01:01]} 35. Nd3 {[%clk 0:01:14]}  Be4 {[%clk 0:00:59]} 36. Rc3 {[%clk 0:01:14]}  Rb2+ {[%clk 0:00:59]} 37. Rc2 {[%clk 0:01:08]}  Rb1 {[%clk 0:00:52]} 38. Rc3 {[%clk 0:01:03]}  Rb2+ {[%clk 0:00:40]} 39. Rc2 {[%clk 0:01:03]}  Rb1 {[%clk 0:00:41]} 40. Rc3 {[%clk 0:01:03]}  Rb2+ {[%clk 0:00:15]} 1/2-1/2


[Site "https://www.chess.com"]

[Event "Titled Tuesday Blitz September 28 2021"]
[White "Avila Pavas, Santiago"]
[Black "Berezin, Viktor"]
[WhiteFideId "4437128"]
[BlackFideId "14107872"]
[WhiteElo "2292"]
[BlackElo "2310"]
[Result "1-0"]
[Round "11"]
[TimeControl "180+1"]
[Date "2021.09.28"]
[WhiteClock "0:00:35"]
[BlackClock "0:00:09"]

1. d4 {[%clk 0:03:00]}  Nf6 {[%clk 0:02:59]} 2. c4 {[%clk 0:03:01]}  g6 {[%clk 0:02:59]} 3. Nc3 {[%clk 0:03:01]}  Bg7 {[%clk 0:03:00]} 4. e4 {[%clk 0:03:01]}  d6 {[%clk 0:03:01]} 5. Nf3 {[%clk 0:03:01]}  O-O {[%clk 0:03:01]} 6. h3 {[%clk 0:03:02]}  Nc6 {[%clk 0:03:02]} 7. Be3 {[%clk 0:03:00]}  e5 {[%clk 0:03:02]} 8. d5 {[%clk 0:03:00]}  Ne7 {[%clk 0:03:00]} 9. g4 {[%clk 0:03:00]}  Ne8 {[%clk 0:03:00]} 10. Bd3 {[%clk 0:02:52]}  f5 {[%clk 0:02:55]} 11. gxf5 {[%clk 0:02:53]}  gxf5 {[%clk 0:02:55]} 12. Qe2 {[%clk 0:02:51]}  f4 {[%clk 0:02:55]} 13. Bd2 {[%clk 0:02:51]}  c5 {[%clk 0:02:55]} 14. O-O-O {[%clk 0:02:40]}  Kh8 {[%clk 0:02:53]} 15. Rdg1 {[%clk 0:02:40]}  a6 {[%clk 0:02:50]} 16. Ng5 {[%clk 0:02:32]}  Nc7 {[%clk 0:02:41]} 17. Nxh7 {[%clk 0:02:20]}  Kxh7 {[%clk 0:02:29]} 18. Qh5+ {[%clk 0:02:19]}  Bh6 {[%clk 0:02:25]} 19. Be2 {[%clk 0:01:52]}  Qe8 {[%clk 0:02:16]} 20. Qh4 {[%clk 0:01:52]}  Ng6 {[%clk 0:02:12]} 21. Qh5 {[%clk 0:01:52]}  Ne7 {[%clk 0:02:09]} 22. Qh4 {[%clk 0:01:52]}  Ng6 {[%clk 0:01:51]} 23. Qh5 {[%clk 0:01:53]}  Rf6 {[%clk 0:01:52]} 24. Bg4 {[%clk 0:01:50]}  Qf7 {[%clk 0:01:43]} 25. Rg2 {[%clk 0:01:29]}  b5 {[%clk 0:01:40]} 26. Rhg1 {[%clk 0:01:29]}  Bxg4 {[%clk 0:00:54]} 27. hxg4 {[%clk 0:01:25]}  Ne7 {[%clk 0:00:39]} 28. Qh3 {[%clk 0:01:25]}  Rg8 {[%clk 0:00:33]} 29. g5 {[%clk 0:01:24]}  Rfg6 {[%clk 0:00:30]} 30. gxh6 {[%clk 0:01:07]}  Rxh6 {[%clk 0:00:17]} 31. Rh1 {[%clk 0:00:53]}  Rg6 {[%clk 0:00:12]} 32. Rgh2 {[%clk 0:00:43]}  bxc4 {[%clk 0:00:06]} 33. Qxh6+ {[%clk 0:00:41]}  Rxh6 {[%clk 0:00:06]} 34. Rxh6+ {[%clk 0:00:42]}  Kg7 {[%clk 0:00:06]} 35. Rh7+ {[%clk 0:00:42]}  Kf6 {[%clk 0:00:06]} 36. Rxf7+ {[%clk 0:00:42]}  Kxf7 {[%clk 0:00:07]} 37. Rh7+ {[%clk 0:00:41]}  Kf8 {[%clk 0:00:07]} 38. f3 {[%clk 0:00:40]}  Ne8 {[%clk 0:00:07]} 39. Be1 {[%clk 0:00:40]}  Nf6 {[%clk 0:00:07]} 40. Rxe7 {[%clk 0:00:35]}  Kxe7 {[%clk 0:00:07]} 41. Bh4 {[%clk 0:00:35]}  Kf7 {[%clk 0:00:07]} 42. Bxf6 {[%clk 0:00:35]}  Kxf6 {[%clk 0:00:07]} 43. Na4 {[%clk 0:00:36]}  Kg5 {[%clk 0:00:08]} 44. Kd2 {[%clk 0:00:34]}  Kh4 {[%clk 0:00:09]} 45. Nb6 {[%clk 0:00:34]}  Kg3 {[%clk 0:00:09]} 46. Ke2 {[%clk 0:00:35]}  Kg2 {[%clk 0:00:09]} 1-0


[Site "https://www.chess.com"]

[Event "Titled Tuesday Blitz September 28 2021"]
[White "Bach, Ngoc Thuy Duong"]
[Black "Langrock, Hannes"]
[WhiteFideId "12408956"]
[BlackFideId "4655290"]
[WhiteElo "1896"]
[BlackElo "2325"]
[Result "0-1"]
[Round "11"]
[TimeControl "180+1"]
[Date "2021.09.28"]
[WhiteClock "0:00:06"]
[BlackClock "0:00:07"]

1. d4 {[%clk 0:03:00]}  f5 {[%clk 0:02:57]} 2. c4 {[%clk 0:03:00]}  Nf6 {[%clk 0:02:57]} 3. Nc3 {[%clk 0:03:01]}  d6 {[%clk 0:02:57]} 4. Nf3 {[%clk 0:02:59]}  g6 {[%clk 0:02:57]} 5. Bf4 {[%clk 0:02:57]}  Bg7 {[%clk 0:02:56]} 6. e3 {[%clk 0:02:57]}  O-O {[%clk 0:02:54]} 7. Be2 {[%clk 0:02:54]}  Nc6 {[%clk 0:02:50]} 8. d5 {[%clk 0:02:42]}  e5 {[%clk 0:02:49]} 9. dxc6 {[%clk 0:02:15]}  exf4 {[%clk 0:02:48]} 10. cxb7 {[%clk 0:02:01]}  Bxb7 {[%clk 0:02:48]} 11. exf4 {[%clk 0:01:57]}  Ne4 {[%clk 0:02:24]} 12. Nd5 {[%clk 0:01:09]}  c6 {[%clk 0:02:23]} 13. Ne3 {[%clk 0:01:06]}  Bxb2 {[%clk 0:02:16]} 14. Rb1 {[%clk 0:01:06]}  Nc3 {[%clk 0:01:34]} 15. Qc2 {[%clk 0:01:04]}  Nxb1 {[%clk 0:01:34]} 16. Qxb2 {[%clk 0:01:03]}  Qa5+ {[%clk 0:01:27]} 17. Kf1 {[%clk 0:01:00]}  Qb6 {[%clk 0:01:22]} 18. Qc1 {[%clk 0:00:52]}  Rab8 {[%clk 0:00:53]} 19. g3 {[%clk 0:00:50]}  c5 {[%clk 0:00:50]} 20. Kg2 {[%clk 0:00:47]}  Be4 {[%clk 0:00:41]} 21. Rd1 {[%clk 0:00:25]}  Qb2 {[%clk 0:00:40]} 22. Qxb2 {[%clk 0:00:21]}  Rxb2 {[%clk 0:00:40]} 23. Bd3 {[%clk 0:00:20]}  Nc3 {[%clk 0:00:35]} 24. Bxe4 {[%clk 0:00:18]}  Nxe4 {[%clk 0:00:35]} 25. Rf1 {[%clk 0:00:12]}  Rxa2 {[%clk 0:00:35]} 26. Nd5 {[%clk 0:00:11]}  Rb8 {[%clk 0:00:34]} 27. Ng5 {[%clk 0:00:10]}  Rbb2 {[%clk 0:00:18]} 28. Nxe4 {[%clk 0:00:09]}  fxe4 {[%clk 0:00:19]} 29. Ne3 {[%clk 0:00:10]}  Re2 {[%clk 0:00:17]} 30. Kh3 {[%clk 0:00:09]}  a5 {[%clk 0:00:17]} 31. Kg4 {[%clk 0:00:09]}  Rxf2 {[%clk 0:00:16]} 32. Rd1 {[%clk 0:00:09]}  Rfd2 {[%clk 0:00:15]} 33. Rb1 {[%clk 0:00:09]}  Rdb2 {[%clk 0:00:15]} 34. Rd1 {[%clk 0:00:09]}  Rb6 {[%clk 0:00:16]} 35. Nd5 {[%clk 0:00:10]}  Ra6 {[%clk 0:00:15]} 36. Nf6+ {[%clk 0:00:09]}  Kg7 {[%clk 0:00:14]} 37. Nxe4 {[%clk 0:00:09]}  a4 {[%clk 0:00:13]} 38. Nxd6 {[%clk 0:00:10]}  a3 {[%clk 0:00:12]} 39. Nb5 {[%clk 0:00:09]}  Rxh2 {[%clk 0:00:12]} 40. Rd7+ {[%clk 0:00:07]}  Kh6 {[%clk 0:00:10]} 41. Nd6 {[%clk 0:00:06]}  a2 {[%clk 0:00:07]} 42. Nf7+ {[%clk 0:00:06]}  Kg7 {[%clk 0:00:08]} 43. Ng5+ {[%clk 0:00:06]}  Kf8 {[%clk 0:00:08]} 44. Rf7+ {[%clk 0:00:06]}  Ke8 {[%clk 0:00:08]} 45. Rxh7 {[%clk 0:00:05]}  Rxh7 {[%clk 0:00:08]} 46. Nxh7 {[%clk 0:00:06]}  a1=Q {[%clk 0:00:07]} 0-1


[Site "https://www.chess.com"]

[Event "Titled Tuesday Blitz September 28 2021"]
[White "Balabayeva, Xeniya"]
[Black "Harshavardhan G B"]
[WhiteFideId "13719688"]
[BlackFideId "25059009"]
[WhiteElo "1965"]
[BlackElo "1825"]
[Result "0-1"]
[Round "11"]
[TimeControl "180+1"]
[Date "2021.09.28"]
[WhiteClock "0:00:02"]
[BlackClock "0:00:46"]

1. e4 {[%clk 0:03:00]}  e5 {[%clk 0:02:53]} 2. Nf3 {[%clk 0:03:00]}  Nc6 {[%clk 0:02:53]} 3. Nc3 {[%clk 0:03:00]}  Nf6 {[%clk 0:02:51]} 4. Bb5 {[%clk 0:03:01]}  Nd4 {[%clk 0:02:46]} 5. Bc4 {[%clk 0:03:00]}  Bc5 {[%clk 0:02:39]} 6. d3 {[%clk 0:02:57]}  d6 {[%clk 0:02:38]} 7. Nxd4 {[%clk 0:02:55]}  Bxd4 {[%clk 0:02:38]} 8. Rb1 {[%clk 0:02:48]}  Ng4 {[%clk 0:02:33]} 9. Qf3 {[%clk 0:02:33]}  O-O {[%clk 0:02:27]} 10. O-O {[%clk 0:02:19]}  Qh4 {[%clk 0:02:24]} 11. h3 {[%clk 0:02:18]}  Nf6 {[%clk 0:02:07]} 12. Ne2 {[%clk 0:02:13]}  Bb6 {[%clk 0:02:03]} 13. Be3 {[%clk 0:01:46]}  Be6 {[%clk 0:02:01]} 14. Ng3 {[%clk 0:01:41]}  c6 {[%clk 0:01:53]} 15. Bb3 {[%clk 0:01:37]}  d5 {[%clk 0:01:51]} 16. Bxb6 {[%clk 0:01:35]}  axb6 {[%clk 0:01:50]} 17. Rbe1 {[%clk 0:01:31]}  Rfe8 {[%clk 0:01:43]} 18. exd5 {[%clk 0:01:24]}  Bxd5 {[%clk 0:01:44]} 19. Bxd5 {[%clk 0:01:23]}  Nxd5 {[%clk 0:01:45]} 20. Re4 {[%clk 0:01:18]}  Qf6 {[%clk 0:01:43]} 21. Qd1 {[%clk 0:00:54]}  Rxa2 {[%clk 0:01:39]} 22. c4 {[%clk 0:00:47]}  Nf4 {[%clk 0:01:37]} 23. Qb3 {[%clk 0:00:46]}  Ra6 {[%clk 0:01:33]} 24. Rfe1 {[%clk 0:00:45]}  h5 {[%clk 0:01:24]} 25. d4 {[%clk 0:00:36]}  h4 {[%clk 0:01:22]} 26. dxe5 {[%clk 0:00:24]}  Qg5 {[%clk 0:01:19]} 27. Qf3 {[%clk 0:00:22]}  hxg3 {[%clk 0:01:13]} 28. Rxf4 {[%clk 0:00:20]}  gxf2+ {[%clk 0:01:12]} 29. Qxf2 {[%clk 0:00:19]}  Rxe5 {[%clk 0:01:03]} 30. Rxe5 {[%clk 0:00:18]}  Qxe5 {[%clk 0:01:04]} 31. g3 {[%clk 0:00:15]}  Ra1+ {[%clk 0:01:03]} 32. Kg2 {[%clk 0:00:15]}  Rb1 {[%clk 0:01:01]} 33. Kf3 {[%clk 0:00:13]}  Rxb2 {[%clk 0:01:00]} 34. Qe3 {[%clk 0:00:13]}  Qxe3+ {[%clk 0:00:57]} 35. Kxe3 {[%clk 0:00:12]}  Rb3+ {[%clk 0:00:57]} 36. Kf2 {[%clk 0:00:12]}  b5 {[%clk 0:00:57]} 37. cxb5 {[%clk 0:00:12]}  Rxb5 {[%clk 0:00:58]} 38. Rd4 {[%clk 0:00:12]}  g6 {[%clk 0:00:57]} 39. Rd7 {[%clk 0:00:12]}  Rb3 {[%clk 0:00:54]} 40. Rd6 {[%clk 0:00:10]}  c5 {[%clk 0:00:53]} 41. g4 {[%clk 0:00:10]}  c4 {[%clk 0:00:52]} 42. Rd4 {[%clk 0:00:09]}  b5 {[%clk 0:00:51]} 43. Rd5 {[%clk 0:00:09]}  b4 {[%clk 0:00:51]} 44. Rc5 {[%clk 0:00:09]}  c3 {[%clk 0:00:49]} 45. h4 {[%clk 0:00:09]}  Rb1 {[%clk 0:00:49]} 46. Ke3 {[%clk 0:00:09]}  Rh1 {[%clk 0:00:46]} 47. Rc4 {[%clk 0:00:07]}  b3 {[%clk 0:00:46]} 48. Rxc3 {[%clk 0:00:02]}  b2 {[%clk 0:00:46]} 0-1


[Site "https://www.chess.com"]

[Event "Titled Tuesday Blitz September 28 2021"]
[White "Demidov, Mikhail"]
[Black "Khusnutdinov, Rustam"]
[WhiteFideId "4197143"]
[BlackFideId "13701703"]
[WhiteElo "2944"]
[BlackElo "2897"]
[Result "0-1"]
[Round "11"]
[TimeControl "180+1"]
[Date "2021.09.28"]
[WhiteClock "0:00:02"]
[BlackClock "0:00:25"]

1. Nf3 {[%clk 0:03:00]}  d5 {[%clk 0:02:58]} 2. g3 {[%clk 0:03:00]}  Nd7 {[%clk 0:02:58]} 3. d4 {[%clk 0:02:59]}  Nb6 {[%clk 0:02:58]} 4. b3 {[%clk 0:02:59]}  Bf5 {[%clk 0:02:58]} 5. Ba3 {[%clk 0:02:58]}  h6 {[%clk 0:02:38]} 6. Bg2 {[%clk 0:02:56]}  Nf6 {[%clk 0:02:38]} 7. O-O {[%clk 0:02:53]}  g5 {[%clk 0:02:38]} 8. c4 {[%clk 0:02:52]}  Bg7 {[%clk 0:02:35]} 9. Nc3 {[%clk 0:02:49]}  Ne4 {[%clk 0:02:35]} 10. Rc1 {[%clk 0:02:48]}  c6 {[%clk 0:02:28]} 11. cxd5 {[%clk 0:02:41]}  Nxc3 {[%clk 0:02:24]} 12. Rxc3 {[%clk 0:02:39]}  Nxd5 {[%clk 0:02:25]} 13. Rc5 {[%clk 0:02:28]}  O-O {[%clk 0:02:23]} 14. Nxg5 {[%clk 0:02:13]}  hxg5 {[%clk 0:01:50]} 15. e4 {[%clk 0:02:13]}  Bxe4 {[%clk 0:01:47]} 16. Bxe4 {[%clk 0:02:14]}  e6 {[%clk 0:01:48]} 17. Re1 {[%clk 0:01:55]}  Re8 {[%clk 0:01:47]} 18. Bc1 {[%clk 0:01:38]}  f5 {[%clk 0:01:45]} 19. Bb1 {[%clk 0:01:29]}  Qf6 {[%clk 0:01:44]} 20. Qh5 {[%clk 0:01:16]}  g4 {[%clk 0:01:43]} 21. h3 {[%clk 0:01:07]}  gxh3 {[%clk 0:01:41]} 22. Qxh3 {[%clk 0:01:01]}  Kf7 {[%clk 0:01:34]} 23. Qh5+ {[%clk 0:00:58]}  Qg6 {[%clk 0:01:35]} 24. Qxg6+ {[%clk 0:00:55]}  Kxg6 {[%clk 0:01:35]} 25. Bb2 {[%clk 0:00:49]}  Rad8 {[%clk 0:01:34]} 26. Rc2 {[%clk 0:00:39]}  Kf7 {[%clk 0:01:32]} 27. Rce2 {[%clk 0:00:39]}  Nc7 {[%clk 0:01:30]} 28. Rd1 {[%clk 0:00:34]}  Rd7 {[%clk 0:01:26]} 29. Red2 {[%clk 0:00:33]}  Red8 {[%clk 0:01:26]} 30. Kf1 {[%clk 0:00:24]}  c5 {[%clk 0:01:26]} 31. d5 {[%clk 0:00:18]}  Nxd5 {[%clk 0:01:22]} 32. Bxg7 {[%clk 0:00:17]}  Ne3+ {[%clk 0:00:42]} 33. Ke2 {[%clk 0:00:08]}  Nxd1 {[%clk 0:00:41]} 34. Rxd7+ {[%clk 0:00:08]}  Rxd7 {[%clk 0:00:42]} 35. Be5 {[%clk 0:00:08]}  b5 {[%clk 0:00:36]} 36. Bd3 {[%clk 0:00:03]}  Nxf2 {[%clk 0:00:33]} 37. Bxb5 {[%clk 0:00:02]}  Rd5 {[%clk 0:00:33]} 38. Bf4 {[%clk 0:00:02]}  Ne4 {[%clk 0:00:33]} 39. Bc4 {[%clk 0:00:02]}  Rd8 {[%clk 0:00:29]} 40. a4 {[%clk 0:00:03]}  Kf6 {[%clk 0:00:28]} 41. Bc7 {[%clk 0:00:02]}  Rh8 {[%clk 0:00:27]} 42. Kf3 {[%clk 0:00:02]}  Rh2 {[%clk 0:00:25]} 43. Ke3 {[%clk 0:00:01]}  Rc2 {[%clk 0:00:24]} 44. Bd3 {[%clk 0:00:01]}  Rc3 {[%clk 0:00:24]} 45. a5 {[%clk 0:00:01]}  Rxb3 {[%clk 0:00:25]} 46. a6 {[%clk 0:00:02]}  c4 {[%clk 0:00:25]} 0-1


[Site "https://www.chess.com"]

[Event "Titled Tuesday Blitz September 28 2021"]
[White "Demin, Vladimir"]
[Black "Rosen, Eric"]
[WhiteFideId "4167457"]
[BlackFideId "2032562"]
[WhiteElo "2531"]
[BlackElo "2362"]
[Result "0-1"]
[Round "11"]
[TimeControl "180+1"]
[Date "2021.09.28"]
[WhiteClock "0:01:57"]
[BlackClock "0:01:12"]

1. e4 {[%clk 0:03:00]}  e5 {[%clk 0:03:00]} 2. Nf3 {[%clk 0:02:59]}  Nf6 {[%clk 0:03:00]} 3. Nxe5 {[%clk 0:02:59]}  Nc6 {[%clk 0:03:00]} 4. Nxc6 {[%clk 0:02:56]}  dxc6 {[%clk 0:03:01]} 5. Bc4 {[%clk 0:02:46]}  Bc5 {[%clk 0:02:51]} 6. O-O {[%clk 0:02:37]}  Ng4 {[%clk 0:02:32]} 7. Qf3 {[%clk 0:02:26]}  Ne5 {[%clk 0:02:16]} 8. Qe2 {[%clk 0:02:21]}  Bg4 {[%clk 0:01:58]} 9. Bxf7+ {[%clk 0:02:14]}  Kxf7 {[%clk 0:01:56]} 10. Qe1 {[%clk 0:02:14]}  Nf3+ {[%clk 0:01:12]} 11. gxf3 {[%clk 0:02:10]}  Bxf3 {[%clk 0:01:12]} 12. d4 {[%clk 0:01:57]}  Qh4 {[%clk 0:01:12]} 0-1


[Site "https://www.chess.com"]

[Event "Titled Tuesday Blitz September 28 2021"]
[White "Drozdowski, Kacper"]
[Black "Rozman, Levy"]
[WhiteFideId "1136720"]
[BlackFideId "2039877"]
[WhiteElo "2507"]
[BlackElo "2376"]
[Result "1-0"]
[Round "11"]
[TimeControl "180+1"]
[Date "2021.09.28"]
[WhiteClock "0:00:42"]
[BlackClock "0:00:03"]

1. e4 {[%clk 0:03:00]}  d5 {[%clk 0:02:54]} 2. exd5 {[%clk 0:03:00]}  Nf6 {[%clk 0:02:54]} 3. Nf3 {[%clk 0:03:01]}  Bg4 {[%clk 0:02:54]} 4. Be2 {[%clk 0:03:00]}  Qxd5 {[%clk 0:02:53]} 5. Nc3 {[%clk 0:03:00]}  Qh5 {[%clk 0:02:53]} 6. d3 {[%clk 0:02:56]}  Nc6 {[%clk 0:02:52]} 7. Be3 {[%clk 0:02:57]}  O-O-O {[%clk 0:02:50]} 8. h3 {[%clk 0:02:57]}  e5 {[%clk 0:02:44]} 9. O-O {[%clk 0:02:55]}  Bd6 {[%clk 0:02:21]} 10. Ne4 {[%clk 0:02:47]}  Bxf3 {[%clk 0:02:04]} 11. Bxf3 {[%clk 0:02:48]}  Qg6 {[%clk 0:02:03]} 12. Nxd6+ {[%clk 0:02:31]}  Rxd6 {[%clk 0:02:01]} 13. Bc5 {[%clk 0:02:32]}  Re6 {[%clk 0:01:59]} 14. Qd2 {[%clk 0:02:30]}  e4 {[%clk 0:01:57]} 15. dxe4 {[%clk 0:02:20]}  Nxe4 {[%clk 0:01:50]} 16. Bxe4 {[%clk 0:02:20]}  Rxe4 {[%clk 0:01:48]} 17. Rfe1 {[%clk 0:02:20]}  Rhe8 {[%clk 0:01:38]} 18. Rxe4 {[%clk 0:02:19]}  Qxe4 {[%clk 0:01:36]} 19. Be3 {[%clk 0:02:19]}  f5 {[%clk 0:01:30]} 20. Rd1 {[%clk 0:01:59]}  Rd8 {[%clk 0:01:24]} 21. Qc1 {[%clk 0:01:57]}  Rxd1+ {[%clk 0:01:21]} 22. Qxd1 {[%clk 0:01:58]}  f4 {[%clk 0:01:22]} 23. Bc5 {[%clk 0:01:56]}  b6 {[%clk 0:01:17]} 24. Ba3 {[%clk 0:01:53]}  Nd4 {[%clk 0:01:13]} 25. c3 {[%clk 0:01:53]}  Ne6 {[%clk 0:00:45]} 26. b3 {[%clk 0:01:48]}  g6 {[%clk 0:00:40]} 27. Bb2 {[%clk 0:01:45]}  h5 {[%clk 0:00:39]} 28. c4 {[%clk 0:01:45]}  Ng5 {[%clk 0:00:34]} 29. h4 {[%clk 0:01:43]}  Ne6 {[%clk 0:00:31]} 30. Bc3 {[%clk 0:01:40]}  a5 {[%clk 0:00:30]} 31. Bf6 {[%clk 0:01:34]}  Nc5 {[%clk 0:00:26]} 32. Kh2 {[%clk 0:01:28]}  Nd3 {[%clk 0:00:26]} 33. f3 {[%clk 0:01:22]}  Qe3 {[%clk 0:00:23]} 34. Bg5 {[%clk 0:01:22]}  Kb7 {[%clk 0:00:22]} 35. Qc2 {[%clk 0:01:17]}  a4 {[%clk 0:00:13]} 36. bxa4 {[%clk 0:01:14]}  Kb8 {[%clk 0:00:09]} 37. a5 {[%clk 0:01:12]}  bxa5 {[%clk 0:00:08]} 38. c5 {[%clk 0:01:10]}  Kb7 {[%clk 0:00:04]} 39. Qb3+ {[%clk 0:01:09]}  Kc6 {[%clk 0:00:05]} 40. Qa4+ {[%clk 0:01:08]}  Kxc5 {[%clk 0:00:05]} 41. Qxa5+ {[%clk 0:01:08]}  Kd6 {[%clk 0:00:04]} 42. Qa6+ {[%clk 0:01:06]}  c6 {[%clk 0:00:04]} 43. Qa3+ {[%clk 0:01:06]}  Kd5 {[%clk 0:00:03]} 44. Qb3+ {[%clk 0:01:06]}  Kd6 {[%clk 0:00:03]} 45. Qf7 {[%clk 0:01:03]}  Qd2 {[%clk 0:00:03]} 46. Qxg6+ {[%clk 0:01:03]}  Kd5 {[%clk 0:00:03]} 47. Qe4+ {[%clk 0:01:03]}  Kc5 {[%clk 0:00:03]} 48. Be7+ {[%clk 0:01:02]}  Kb6 {[%clk 0:00:03]} 49. Qd4+ {[%clk 0:01:01]}  Kb7 {[%clk 0:00:02]} 50. Bc5 {[%clk 0:00:54]}  Qe2 {[%clk 0:00:02]} 51. Qd7+ {[%clk 0:00:53]}  Kb8 {[%clk 0:00:02]} 52. Bd6+ {[%clk 0:00:52]}  Ka8 {[%clk 0:00:02]} 53. Qxc6+ {[%clk 0:00:47]}  Ka7 {[%clk 0:00:03]} 54. Qc7+ {[%clk 0:00:46]}  Ka6 {[%clk 0:00:03]} 55. Qc4+ {[%clk 0:00:46]}  Kb6 {[%clk 0:00:02]} 56. Bxf4 {[%clk 0:00:44]}  Nxf4 {[%clk 0:00:02]} 57. Qxf4 {[%clk 0:00:44]}  Qe1 {[%clk 0:00:02]} 58. Qf6+ {[%clk 0:00:42]}  Kc7 {[%clk 0:00:03]} 59. Qg5 {[%clk 0:00:42]} 1-0


[Site "https://www.chess.com"]

[Event "Titled Tuesday Blitz September 28 2021"]
[White "Dzhaparov, Medet"]
[Black "Redzisz, Michal"]
[WhiteFideId "13803689"]
[BlackFideId "21816107"]
[WhiteElo "1702"]
[BlackElo "1935"]
[Result "1-0"]
[Round "11"]
[TimeControl "180+1"]
[Date "2021.09.28"]
[WhiteClock "0:01:40"]
[BlackClock "0:02:15"]

1. d4 {[%clk 0:03:00]}  Nf6 {[%clk 0:02:59]} 2. c4 {[%clk 0:02:58]}  e6 {[%clk 0:02:55]} 3. Nc3 {[%clk 0:02:58]}  c5 {[%clk 0:02:55]} 4. d5 {[%clk 0:02:58]}  exd5 {[%clk 0:02:56]} 5. cxd5 {[%clk 0:02:58]}  d6 {[%clk 0:02:57]} 6. e4 {[%clk 0:02:59]}  g6 {[%clk 0:02:58]} 7. h3 {[%clk 0:02:59]}  Bg7 {[%clk 0:02:58]} 8. Nf3 {[%clk 0:03:00]}  O-O {[%clk 0:02:59]} 9. Bd3 {[%clk 0:03:00]}  Ne8 {[%clk 0:02:59]} 10. O-O {[%clk 0:03:00]}  a6 {[%clk 0:03:00]} 11. a4 {[%clk 0:02:59]}  Nc7 {[%clk 0:03:00]} 12. Bg5 {[%clk 0:02:51]}  f6 {[%clk 0:02:52]} 13. Bf4 {[%clk 0:02:51]}  Qe7 {[%clk 0:02:45]} 14. Nd2 {[%clk 0:02:46]}  Nd7 {[%clk 0:02:46]} 15. Bh2 {[%clk 0:02:43]}  Rb8 {[%clk 0:02:42]} 16. Nc4 {[%clk 0:02:27]}  Ne5 {[%clk 0:02:40]} 17. a5 {[%clk 0:02:24]}  Nxc4 {[%clk 0:02:29]} 18. Bxc4 {[%clk 0:02:23]}  f5 {[%clk 0:02:29]} 19. Re1 {[%clk 0:01:57]}  f4 {[%clk 0:02:27]} 20. e5 {[%clk 0:01:46]}  Bxe5 {[%clk 0:02:26]} 21. Ne4 {[%clk 0:01:45]}  b5 {[%clk 0:02:15]} 22. axb6 {[%clk 0:01:43]}  Rxb6 {[%clk 0:02:15]} 23. Nxc5 {[%clk 0:01:40]}  dxc5 {[%clk 0:02:15]} 24. d6+ {[%clk 0:01:40]} 1-0


[Site "https://www.chess.com"]

[Event "Titled Tuesday Blitz September 28 2021"]
[White "Girinath, P.D.S."]
[Black "Jain Kashish Manoj"]
[WhiteFideId "5000572"]
[BlackFideId "35081098"]
[WhiteElo "2333"]
[BlackElo "1681"]
[Result "0-1"]
[Round "11"]
[TimeControl "180+1"]
[Date "2021.09.28"]
[WhiteClock "0:00:02"]
[BlackClock "0:00:11"]

1. e4 {[%clk 0:03:00]}  c5 {[%clk 0:02:58]} 2. Nf3 {[%clk 0:03:00]}  d6 {[%clk 0:02:58]} 3. Bb5+ {[%clk 0:03:00]}  Bd7 {[%clk 0:02:57]} 4. Bxd7+ {[%clk 0:03:00]}  Nxd7 {[%clk 0:02:58]} 5. O-O {[%clk 0:03:00]}  Ngf6 {[%clk 0:02:57]} 6. Re1 {[%clk 0:03:00]}  Rc8 {[%clk 0:02:57]} 7. c3 {[%clk 0:03:00]}  e6 {[%clk 0:02:56]} 8. d4 {[%clk 0:03:00]}  cxd4 {[%clk 0:02:55]} 9. cxd4 {[%clk 0:03:01]}  d5 {[%clk 0:02:55]} 10. e5 {[%clk 0:02:57]}  Ne4 {[%clk 0:02:56]} 11. Nbd2 {[%clk 0:02:46]}  Nxd2 {[%clk 0:02:53]} 12. Bxd2 {[%clk 0:02:47]}  Qb6 {[%clk 0:02:49]} 13. Qb3 {[%clk 0:02:40]}  Be7 {[%clk 0:02:47]} 14. Rac1 {[%clk 0:02:12]}  O-O {[%clk 0:02:46]} 15. Qa4 {[%clk 0:01:56]}  Rc6 {[%clk 0:02:42]} 16. Rxc6 {[%clk 0:01:50]}  bxc6 {[%clk 0:02:43]} 17. b4 {[%clk 0:01:42]}  Qb7 {[%clk 0:02:13]} 18. Rc1 {[%clk 0:01:37]}  Rc8 {[%clk 0:02:13]} 19. Qb3 {[%clk 0:01:11]}  Nb6 {[%clk 0:02:09]} 20. Bc3 {[%clk 0:01:07]}  Nc4 {[%clk 0:02:05]} 21. g3 {[%clk 0:01:03]}  Rb8 {[%clk 0:02:04]} 22. Nd2 {[%clk 0:00:55]}  Nxd2 {[%clk 0:02:00]} 23. Bxd2 {[%clk 0:00:56]}  h6 {[%clk 0:01:30]} 24. Qc2 {[%clk 0:00:50]}  Qb6 {[%clk 0:01:06]} 25. Be3 {[%clk 0:00:33]}  Qxb4 {[%clk 0:00:56]} 26. Qxc6 {[%clk 0:00:32]}  Bg5 {[%clk 0:00:48]} 27. f4 {[%clk 0:00:21]}  Be7 {[%clk 0:00:44]} 28. Qd7 {[%clk 0:00:19]}  Qa3 {[%clk 0:00:39]} 29. Kf2 {[%clk 0:00:13]}  Qxa2+ {[%clk 0:00:36]} 30. Kf3 {[%clk 0:00:13]}  Bf8 {[%clk 0:00:32]} 31. Rc7 {[%clk 0:00:13]}  Kh8 {[%clk 0:00:20]} 32. Qxf7 {[%clk 0:00:12]}  Qxh2 {[%clk 0:00:18]} 33. Qxe6 {[%clk 0:00:10]}  h5 {[%clk 0:00:14]} 34. Rc8 {[%clk 0:00:02]}  Qh1+ {[%clk 0:00:12]} 35. Ke2 {[%clk 0:00:02]}  Rb2+ {[%clk 0:00:12]} 36. Bd2 {[%clk 0:00:02]}  Qg2+ {[%clk 0:00:11]} 0-1


[Site "https://www.chess.com"]